lending/lending_fUSD_20240111
["ID","MTS","AMOUNT","RATE_DAILY","PERIOD"]
[311199315,1704981034322,-32897.78699578,0.00029031,2]
[311199316,1704981034331,-297.90035849,0.00029031,2]
[311199317,1704981034341,-487.18748295,0.00029032,2]
[311199318,1704981034351,-217.43053943,0.00029033,2]
[311199319,1704981034361,-3345.74854404,0.00029033,2]
[311199320,1704981034371,-28230.97698584,0.00029033,2]
[311199335,1704981038324,-39751.65776381,0.00029033,2]
[311199336,1704981038334,-318.10964854,0.00029034,2]
[311199337,1704981038343,-549.83267092,0.00029034,2]
[311199338,1704981038352,-1944.96321508,0.00029035,2]
[311199339,1704981038363,-13061.13989886,0.00029035,2]
[311199340,1704981038373,-205.0,0.00029065,2]
[311199341,1704981038382,-163.88,0.00029364,2]
[311199342,1704981038391,-1760.94594392,0.00029498,2]
[311199343,1704981038400,-19171.84328322,0.000295,2]
[311199344,1704981038409,-173.95,0.000296,2]
[311199345,1704981038418,-451.06,0.00029665,2]
[311199346,1704981038427,-151.17648534,0.00029788,2]
[311199347,1704981038436,-262.76869605,0.000298,2]
[311199348,1704981038446,-1046.1504,0.0002982,2]
[311199349,1704981038455,-293.89,0.00029883,2]
[311199350,1704981038464,-591.51968689,0.0003,2]
[311199351,1704981038473,-155.0,0.0003,4]
[311199352,1704981038483,-724.2880672,0.0003,4]
[311199353,1704981038492,-6898.43991637,0.0003,4]
[311199354,1704981038501,-153.0,0.0003,2]
[311199355,1704981038511,-587.0,0.00030122,2]
[311199356,1704981038520,-943.8,0.00030211,2]
[311199357,1704981038529,-229.85,0.00030507,2]
[311199358,1704981038538,-479.04,0.00030646,2]
[311199359,1704981038548,-151.17648534,0.00030809,2]
[311199360,1704981038557,-293.89,0.00030862,2]
[311199361,1704981038566,-500.0,0.00031,3]
[311199362,1704981038575,-167.97,0.0003114,2]
[311199363,1704981038585,-716.32220065,0.000315,4]
[311199364,1704981038594,-314.95,0.00031507,2]
[311199365,1704981038604,-153.84,0.00031558,2]
[311199366,1704981038615,-229.85,0.00031618,2]
[311199367,1704981038624,-151.17648534,0.0003183,2]
[311199368,1704981038633,-293.89,0.0003184,2]
[311199369,1704981038643,-163.60136251,0.0003186,2]
[311199370,1704981038651,-313.17,0.0003199,2]
[311199371,1704981038661,-2416.74522891,0.00032,2]
[311199372,1704981038670,-205.0,0.00032159,7]
[311199373,1704981038679,-520.96,0.00032506,2]
[311199374,1704981038689,-153.84,0.00032514,2]
[311199375,1704981038698,-808.0,0.00032608,3]
[311199376,1704981038707,-229.85,0.00032729,2]
[311199377,1704981038717,-344.68,0.00032736,2]
[311199378,1704981038726,-293.89,0.00032819,2]
[311199379,1704981038735,-151.17648534,0.00032851,2]
[311199380,1704981038748,-408.12,0.00032877,15]
[311199381,1704981038758,-153.84,0.00033471,2]
[311199382,1704981038767,-293.89,0.00033797,2]
[311199383,1704981038777,-229.85,0.00033839,2]
[311199384,1704981038786,-151.17648534,0.00033872,2]
[311199385,1704981038796,-920.9362698,0.0003394,4]
[311199386,1704981038807,-1000.0,0.00034,4]
[311199387,1704981038817,-157.34854192,0.00034,2]
[311199388,1704981038828,-256.42,0.00034,7]
[311199389,1704981038838,-479.04,0.00034051,2]
[311199390,1704981038847,-256.42,0.00034137,7]
[311199391,1704981038859,-509.37023103,0.00034274,7]
[311199392,1704981038869,-153.84,0.00034427,2]
[311199393,1704981038879,-207.94,0.00034521,2]
[311199394,1704981038888,-166.17,0.00034654,2]
[311199395,1704981038897,-180.0,0.00034658,2]
[311199396,1704981038907,-314.95,0.00034703,2]
[311199397,1704981038916,-17777.8648,0.00034768,2]
[311199398,1704981038926,-293.89,0.00034776,2]
[311199399,1704981038935,-380.77500368,0.00034788,2]
[311199401,1704981038945,-163.60136251,0.00034788,2]
[311199402,1704981038955,-200.0,0.000348,12]
[311199403,1704981038965,-166.17,0.00034836,2]
[311199404,1704981038974,-313.17,0.00034858,2]
[311199405,1704981038983,-212481.0073,0.00034868,2]
[311199407,1704981038992,-163.88,0.00034888,2]
[311199409,1704981039002,-151.17648534,0.00034893,2]
[311199411,1704981039011,-151.82364887,0.000349,2]
[311199413,1704981039020,-150.36366081,0.000349,2]
[311199415,1704981039030,-1626.81775189,0.000349,2]
[311199416,1704981039039,-500.0,0.000349,12]
[311199417,1704981039049,-229.85,0.0003495,2]
[311199418,1704981039058,-174.28094877,0.0003499,2]
[311199419,1704981039067,-313.17,0.0003499,2]
[311199420,1704981039076,-313.17,0.0003499,2]
[311199421,1704981039086,-313.17,0.0003499,2]
[311199422,1704981039096,-156.77522657,0.00034997,2]
[311199423,1704981039105,-233.95,0.00034999,2]
[311199424,1704981039115,-233.95,0.00034999,2]
[311199425,1704981039123,-233.95,0.00034999,2]
[311199426,1704981039133,-233.95,0.00034999,2]
[311199427,1704981039142,-233.95,0.00034999,2]
[311199428,1704981039151,-233.95,0.00034999,2]
[311199429,1704981039160,-403381.16406348,0.00035,2]
[311199430,1704981039173,-968.60609467,0.00035,2]
[311199431,1704981039184,-10978.99999995,0.00035,2]
[311199432,1704981039196,-543.29728188,0.00035,2]
[311199433,1704981039540,-272572.26481816,0.00035,2]
[311199434,1704981039549,-465.46161442,0.00035,2]
[311199435,1704981039559,-5000.0,0.00035,2]
[311199436,1704981039568,-344.68,0.00035,2]
[311199437,1704981039577,-166.17,0.00035019,2]
[311199439,1704981039587,-166.17,0.00035201,2]
[311199441,1704981039596,-205.0,0.00035252,13]
[311199443,1704981039607,-153.84,0.00035383,2]
[311199445,1704981039616,-166.17,0.00035383,2]
[311199447,1704981039625,-151.82364856,0.00035547,2]
[311199449,1704981039634,-166.17,0.00035566,2]
[311199451,1704981039644,-151.78,0.00035616,2]
[311199453,1704981039653,-166.17,0.00035748,2]
[311199455,1704981039663,-293.89,0.00035754,2]
[311199457,1704981039672,-207.94,0.00035798,2]
[311199459,1704981039681,-151.17648534,0.00035914,2]
[311199461,1704981039690,-166.17,0.00035931,2]
[311199463,1704981039699,-150.45,0.00036,2]
[311199465,1704981039708,-150.45,0.00036,2]
[311199467,1704981039717,-229.85,0.00036061,2]
[311199469,1704981039726,-193.06753885,0.00036089,2]
[311199472,1704981039736,-193.06753879,0.00036089,2]
[311199473,1704981039745,-193.06753879,0.00036089,2]
[311199476,1704981039755,-193.06753879,0.00036089,2]
[311199478,1704981039764,-193.06753879,0.00036089,2]
[311199480,1704981039774,-166.17,0.00036113,2]
[311199481,1704981039783,-520.96,0.00036118,2]
[311199483,1704981039792,-151.82364856,0.00036193,2]
[311199486,1704981039802,-313.17,0.00036197,2]
[311199488,1704981039811,-22811.48375123,0.00036207,11]
[311199490,1704981039820,-23023.51397986,0.00036207,12]
[311199491,1704981039829,-3681.74750395,0.00036207,10]
[311199494,1704981039838,-11823.6314748,0.00036207,11]
[311199496,1704981039848,-153.0,0.00036207,2]
[311199497,1704981039858,-166.17,0.00036295,2]
[311199518,1704981040038,-153.84,0.0003634,2]
[311199520,1704981040051,-1626.81775172,0.00036367,2]
[311199522,1704981040060,-166.17,0.00036478,2]
[311199524,1704981040069,-269.30050027,0.00036518,8]
[311199526,1704981040079,-408.12,0.00036613,15]
[311199528,1704981040088,-166.17,0.0003666,2]
[311199530,1704981040097,-293.89,0.00036732,2]
[311199532,1704981040108,-151.82364856,0.0003684,2]
[311199534,1704981040117,-166.17,0.00036843,2]
[311199536,1704981040126,-151.17648534,0.00036935,2]
[311199538,1704981040135,-1000.0,0.00036986,2]
[311199540,1704981040144,-1000.0,0.00036986,2]
[311199542,1704981040153,-1000.0,0.00036986,2]
[311199544,1704981040163,-1000.0,0.00036986,2]
[311199546,1704981040172,-1000.0,0.00036986,2]
[311199548,1704981040182,-150.45,0.0003699,2]
[311199550,1704981040193,-5000.0,0.00037,3]
[311199552,1704981040202,-166.17,0.00037025,2]
[311199554,1704981040211,-207.94,0.00037075,2]
[311199556,1704981040220,-150.0,0.000371,2]
[311199558,1704981040230,-166.17,0.00037207,2]
[311199562,1704981040239,-344.68,0.00037264,2]
[311199564,1704981040249,-153.84,0.00037296,2]
[311199566,1704981040258,-166.17,0.0003739,2]
[311199569,1704981040268,-479.04,0.00037456,2]
[311199571,1704981040277,-151.82364856,0.00037487,2]
[311199572,1704981040286,-500.0,0.00037518,120]
[311199574,1704981040296,-1913.286752,0.00037518,30]
[311199576,1704981040306,-166.17,0.00037572,2]
[311199578,1704981040315,-151.78,0.00037595,2]
[311199580,1704981040325,-159.88122009,0.00037706,7]
[311199583,1704981040334,-293.89,0.00037711,2]
[311199586,1704981040343,-166.17,0.00037754,2]
[311199589,1704981040352,-167.0,0.00037797,2]
[311199592,1704981040362,-153.96,0.000378,3]
[311199595,1704981040371,-153.96,0.000378,3]
[311199598,1704981040380,-153.96,0.000378,3]
[311199601,1704981040389,-153.96,0.000378,3]
[311199604,1704981040398,-153.96,0.000378,3]
[311199606,1704981040408,-153.96,0.000378,3]
[311199608,1704981040417,-153.96,0.000378,3]
[311199610,1704981040426,-153.96,0.000378,3]
[311199612,1704981040436,-153.96,0.000378,3]
[311199614,1704981040445,-153.96,0.000378,3]
[311199615,1704981040454,-153.96,0.000378,3]
[311199616,1704981040463,-153.96,0.000378,3]
[311199617,1704981040472,-153.96,0.000378,3]
[311199618,1704981040482,-153.96,0.000378,3]
[311199619,1704981040491,-193.06753879,0.00037804,2]
[311199620,1704981040501,-1000.0,0.00037899,2]
[311199621,1704981040510,-314.95,0.000379,2]
[311199622,1704981040519,-93185.2289689,0.000379,2]
[311199623,1704981040529,-166.17,0.00037937,2]
[311199624,1704981040539,-1626.81775172,0.00037946,2]
[311199626,1704981040549,-151.17648534,0.00037956,2]
[311199627,1704981040559,-1508.92641111,0.00037998,4]
[311199629,1704981040569,-3060.04420173,0.00038,4]
[311199630,1704981040578,-8433.22,0.00038,2]
[311199631,1704981040587,-300.0,0.00038,39]
[311199632,1704981040597,-160.83908732,0.00038,2]
[311199633,1704981040608,-160.83908732,0.00038,2]
[311199634,1704981040617,-160.83908732,0.00038,2]
[311199635,1704981040627,-160.83908732,0.00038,2]
[311199636,1704981040636,-160.83908732,0.00038,2]
[311199637,1704981040645,-160.83908732,0.00038,2]
[311199638,1704981040654,-160.83908732,0.00038,2]
[311199639,1704981040663,-160.83908732,0.00038,2]
[311199640,1704981040673,-160.83908732,0.00038,2]
[311199641,1704981040682,-160.83908732,0.00038,2]
[311199642,1704981040692,-160.83908732,0.00038,2]
[311199643,1704981040701,-160.83908732,0.00038,2]
[311199644,1704981040711,-160.83908732,0.00038,2]
[311199645,1704981040720,-160.83908732,0.00038,2]
[311199646,1704981040729,-160.83908732,0.00038,2]
[311199647,1704981040739,-160.83908732,0.00038,2]
[311199648,1704981040748,-160.83908732,0.00038,2]
[311199649,1704981040761,-160.83908732,0.00038,2]
[311199650,1704981040770,-160.83908732,0.00038,2]
[311199651,1704981040779,-160.83908732,0.00038,2]
[311199652,1704981040788,-160.83908732,0.00038,2]
[311199653,1704981040799,-160.83908732,0.00038,2]
[311199654,1704981040808,-160.83908732,0.00038,2]
[311199655,1704981040817,-160.83908732,0.00038,2]
[311199656,1704981040827,-160.83908732,0.00038,2]
[311199657,1704981040839,-160.83908732,0.00038,2]
[311199658,1704981040849,-160.83908732,0.00038,2]
[311199659,1704981040861,-160.83908732,0.00038,2]
[311199660,1704981040871,-160.83908732,0.00038,2]
[311199661,1704981040881,-160.83908732,0.00038,2]
[311199662,1704981040890,-166.17,0.00038119,2]
[311199663,1704981040900,-151.82364856,0.00038133,2]
[311199664,1704981040910,-176.0,0.00038251,2]
[311199665,1704981040919,-153.84,0.00038252,2]
[311199666,1704981040929,-151.44223566,0.00038313,7]
[311199667,1704981040939,-7999.99,0.00038317,28]
[311199668,1704981040948,-2924.94946854,0.00038317,8]
[311199669,1704981040958,-204.8473755,0.00038317,8]
[311199670,1704981040967,-191.60393007,0.00038317,8]
[311199671,1704981040978,-273.59951769,0.00038317,8]
[311199672,1704981040987,-205.0,0.00038346,19]
[311199673,1704981040997,-207.94,0.00038352,2]
[311199674,1704981041006,-666.0,0.00038356,2]
[311199675,1704981041015,-4000.0,0.000384,2]
[311199676,1704981041025,-293.89,0.00038689,2]
[311199677,1704981041034,-151.82364856,0.0003878,2]
[311199678,1704981041044,-700.0,0.000388,14]
[311199679,1704981041053,-153.96,0.000388,3]
[311199680,1704981041062,-153.96,0.000388,3]
[311199681,1704981041072,-153.96,0.000388,3]
[311199682,1704981041081,-153.96,0.000388,3]
[311199683,1704981041091,-153.96,0.000388,3]
[311199684,1704981041100,-153.96,0.000388,3]
[311199685,1704981041110,-153.96,0.000388,3]
[311199686,1704981041120,-153.96,0.000388,3]
[311199687,1704981041129,-153.96,0.000388,3]
[311199688,1704981041139,-153.96,0.000388,3]
[311199689,1704981041148,-153.96,0.000388,3]
[311199690,1704981041157,-153.96,0.000388,3]
[311199691,1704981041167,-153.96,0.000388,3]
[311199692,1704981041176,-153.96,0.000388,3]
[311199693,1704981041185,-2178.73,0.00038864,2]
[311199694,1704981041194,-1000.0,0.000389,14]
[311199695,1704981041204,-1332.80222,0.00038948,2]
[311199696,1704981041213,-313.17,0.0003896,2]
[311199697,1704981041222,-93185.2289689,0.0003897,3]
[311199698,1704981041232,-151.17648534,0.00038977,2]
[311199700,1704981041241,-281.73212903,0.0003898,2]
[311199701,1704981041251,-93185.2289689,0.0003899,3]
[311199702,1704981041261,-150.45,0.0003899,2]
[311199703,1704981041270,-313.17,0.0003899,2]
[311199704,1704981041279,-150.0,0.00038991,2]
[311199705,1704981041288,-156.77522657,0.00038997,2]
[311199706,1704981041297,-1000.0,0.00038999,2]
[311199708,1704981041307,-1427.43973993,0.00039,2]
[311199710,1704981041317,-129188.0755,0.00039,2]
[311199711,1704981041327,-9980.53518716,0.00039,7]
[311199712,1704981041336,-351.83,0.00039,2]
[311199713,1704981041346,-174.73011459,0.00039068,2]
[311199714,1704981041355,-545.9401446,0.00039068,2]
[311199715,1704981041367,-174.28094877,0.00039068,2]
[311199716,1704981041376,-313.17,0.00039068,2]
[311199717,1704981041386,-7500.0,0.00039076,2]
[311199718,1704981041395,-155.00012228,0.00039077,4]
[311199719,1704981041405,-200.55854945,0.00039078,2]
[311199720,1704981041415,-55555.0,0.00039078,3]
[311199721,1704981041424,-2165.0,0.0003909,3]
[311199722,1704981041433,-93185.2289689,0.00039158,4]
[311199723,1704981041442,-313.17,0.00039158,2]
[311199724,1704981041451,-186370.457938,0.00039168,4]
[311199725,1704981041460,-150.45,0.00039168,2]
[311199726,1704981041469,-1326.0498179,0.00039168,2]
[311199727,1704981041479,-1054.80566975,0.00039176,4]
[311199728,1704981041488,-155.0,0.00039176,4]
[311199729,1704981041498,-435.36664987,0.00039176,4]
[311199730,1704981041507,-399.24042288,0.00039176,4]
[311199731,1704981041516,-583.45819627,0.00039176,4]
[311199732,1704981041525,-1000.0,0.00039177,2]
[311199733,1704981041534,-500.0,0.00039178,4]
[311199734,1704981041543,-500.0,0.00039178,4]
[311199735,1704981041552,-500.0,0.00039178,4]
[311199736,1704981041561,-500.0,0.00039178,4]
[311199737,1704981041570,-500.0,0.00039178,4]
[311199738,1704981041579,-500.0,0.00039178,4]
[311199739,1704981041588,-502.73172252,0.00039178,4]
[311199740,1704981041597,-514.43152145,0.00039178,4]
[311199741,1704981041608,-500.0,0.00039178,4]
[311199742,1704981041618,-545.44,0.00039178,4]
[311199743,1704981041627,-500.0,0.00039178,4]
[311199744,1704981041636,-237.32,0.00039178,4]
[311199745,1704981041646,-500.0,0.00039178,4]
[311199746,1704981041655,-500.0,0.00039178,4]
[311199747,1704981041664,-500.0,0.00039178,4]
[311199748,1704981041673,-500.0,0.00039178,4]
[311199749,1704981041682,-500.0,0.00039178,4]
[311199750,1704981041691,-500.0,0.00039178,4]
[311199751,1704981041700,-500.0,0.00039178,4]
[311199752,1704981041709,-500.0,0.00039178,4]
[311199753,1704981041718,-1000.0,0.00039178,2]
[311199754,1704981041727,-416.27,0.00039178,4]
[311199755,1704981041737,-500.0,0.00039178,4]
[311199756,1704981041746,-500.0,0.00039178,4]
[311199757,1704981041755,-500.0,0.00039178,4]
[311199758,1704981041766,-500.0,0.00039178,4]
[311199759,1704981041775,-531.44,0.00039178,4]
[311199760,1704981041784,-500.0,0.00039178,4]
[311199761,1704981041793,-500.0,0.00039178,4]
[311199762,1704981041803,-500.0,0.00039178,4]
[311199763,1704981041812,-500.0,0.00039178,4]
[311199764,1704981041822,-500.0,0.00039178,4]
[311199765,1704981041831,-500.0,0.00039178,4]
[311199766,1704981041840,-500.0,0.00039178,4]
[311199767,1704981041850,-500.0,0.00039178,4]
[311199768,1704981041863,-500.0,0.00039178,4]
[311199769,1704981041873,-500.0,0.00039178,4]
[311199770,1704981041883,-500.0,0.00039178,4]
[311199771,1704981041893,-500.0,0.00039178,4]
[311199772,1704981041903,-551.32,0.00039178,4]
[311199773,1704981041913,-201.99,0.00039178,4]
[311199774,1704981041922,-500.0,0.00039178,4]
[311199775,1704981041932,-508.52822623,0.00039178,3]
[311199776,1704981041941,-500.0,0.00039178,4]
[311199777,1704981041950,-515.36,0.00039178,4]
[311199778,1704981041959,-500.0,0.00039178,4]
[311199779,1704981041968,-640.70988837,0.00039178,4]
[311199780,1704981041978,-500.0,0.00039178,4]
[311199781,1704981041987,-435.42342256,0.00039178,4]
[311199782,1704981041996,-500.0,0.00039178,4]
[311199783,1704981042006,-500.0,0.00039178,4]
[311199784,1704981042015,-500.0,0.00039178,4]
[311199785,1704981042026,-500.0,0.00039178,4]
[311199786,1704981042034,-500.0,0.00039178,4]
[311199787,1704981042045,-479.79,0.00039178,4]
[311199788,1704981042054,-500.0,0.00039178,4]
[311199789,1704981042064,-500.0,0.00039178,4]
[311199790,1704981042073,-500.0,0.00039178,4]
[311199791,1704981042082,-500.0,0.00039178,4]
[311199792,1704981042090,-500.0,0.00039178,4]
[311199793,1704981042100,-1000.0,0.00039178,4]
[311199794,1704981042109,-290.64,0.00039178,4]
[311199795,1704981042120,-500.0,0.00039178,4]
[311199796,1704981042129,-500.0,0.00039178,4]
[311199797,1704981042138,-500.0,0.00039178,4]
[311199798,1704981042147,-500.0,0.00039178,4]
[311199799,1704981042156,-500.0,0.00039178,4]
[311199800,1704981042165,-500.0,0.00039178,4]
[311199801,1704981042175,-500.0,0.00039178,4]
[311199802,1704981042184,-500.0,0.00039178,4]
[311199803,1704981042193,-500.0,0.00039178,4]
[311199804,1704981042202,-500.0,0.00039178,4]
[311199805,1704981042211,-500.0,0.00039178,4]
[311199806,1704981042220,-500.0,0.00039178,4]
[311199807,1704981042230,-507.66516874,0.00039178,4]
[311199808,1704981042239,-500.0,0.00039178,4]
[311199809,1704981042249,-500.0,0.00039178,4]
[311199810,1704981042258,-500.0,0.00039178,4]
[311199811,1704981042268,-500.0,0.00039178,4]
[311199812,1704981042277,-506.21751502,0.00039178,4]
[311199813,1704981042287,-469.76,0.00039178,4]
[311199814,1704981042296,-503.43915993,0.00039178,4]
[311199815,1704981042305,-500.0,0.00039178,4]
[311199816,1704981042315,-500.0,0.00039178,4]
[311199817,1704981042324,-500.0,0.00039178,4]
[311199818,1704981042333,-500.0,0.00039178,4]
[311199819,1704981042343,-207.04,0.00039178,4]
[311199820,1704981042352,-500.0,0.00039178,4]
[311199821,1704981042362,-500.0,0.00039178,4]
[311199822,1704981042371,-500.0,0.00039178,4]
[311199823,1704981042381,-500.0,0.00039178,4]
[311199824,1704981042389,-500.0,0.00039178,4]
[311199825,1704981042398,-500.0,0.00039178,4]
[311199826,1704981042408,-500.0,0.00039178,4]
[311199827,1704981042417,-500.0,0.00039178,4]
[311199828,1704981042426,-500.0,0.00039178,4]
[311199829,1704981042435,-500.0,0.00039178,4]
[311199830,1704981042444,-500.0,0.00039178,4]
[311199831,1704981042454,-500.0,0.00039178,4]
[311199832,1704981042462,-500.0,0.00039178,4]
[311199833,1704981042472,-500.0,0.00039178,4]
[311199834,1704981042481,-500.0,0.00039178,4]
[311199835,1704981042490,-230.34,0.00039178,4]
[311199836,1704981042499,-500.0,0.00039178,4]
[311199837,1704981042508,-500.0,0.00039178,4]
[311199838,1704981042517,-500.0,0.00039178,4]
[311199839,1704981042527,-500.0,0.00039178,4]
[311199840,1704981042536,-500.0,0.00039178,4]
[311199841,1704981042546,-500.0,0.00039178,4]
[311199842,1704981042556,-500.0,0.00039178,4]
[311199843,1704981042565,-500.0,0.00039178,4]
[311199844,1704981042575,-500.0,0.00039178,4]
[311199845,1704981042584,-500.0,0.00039178,4]
[311199846,1704981042593,-500.0,0.00039178,4]
[311199847,1704981042603,-500.0,0.00039178,4]
[311199848,1704981042617,-500.0,0.00039178,4]
[311199849,1704981042626,-500.0,0.00039178,4]
[311199850,1704981042635,-500.0,0.00039178,4]
[311199852,1704981042644,-500.0,0.00039178,4]
[311199855,1704981042654,-500.0,0.00039178,4]
[311199858,1704981042664,-500.0,0.00039178,4]
[311199861,1704981042673,-226.08695647,0.00039178,4]
[311199864,1704981042683,-500.0,0.00039178,2]
[311199867,1704981042692,-500.0,0.00039178,2]
[311199870,1704981042702,-500.0,0.00039178,2]
[311199873,1704981042712,-500.0,0.00039178,2]
[311199876,1704981042722,-500.0,0.00039178,2]
[311199879,1704981042732,-500.0,0.00039178,4]
[311199882,1704981042742,-500.0,0.00039178,4]
[311199886,1704981042751,-500.0,0.00039178,2]
[311199889,1704981042763,-500.0,0.00039178,2]
[311199894,1704981042774,-500.0,0.00039178,2]
[311199900,1704981042784,-500.0,0.00039178,4]
[311199903,1704981042793,-500.0,0.00039178,4]
[311199907,1704981042805,-500.0,0.00039178,4]
[311199911,1704981042814,-501.16,0.00039178,4]
[311199914,1704981042824,-500.0,0.00039178,4]
[311199918,1704981042834,-500.0,0.00039178,4]
[311199921,1704981042844,-253.24,0.00039178,4]
[311199923,1704981042854,-500.0,0.00039178,4]
[311199927,1704981042866,-500.0,0.00039178,4]
[311199930,1704981042875,-500.0,0.00039178,4]
[311199933,1704981042885,-500.0,0.00039178,4]
[311199936,1704981042895,-500.0,0.00039178,4]
[311199939,1704981042904,-500.0,0.00039178,4]
[311199942,1704981042914,-500.0,0.00039178,2]
[311199945,1704981042924,-500.0,0.00039178,4]
[311199948,1704981042934,-500.0,0.00039178,4]
[311199950,1704981042943,-500.0,0.00039178,4]
[311199951,1704981042952,-500.0,0.00039178,4]
[311199954,1704981042961,-500.0,0.00039178,4]
[311199957,1704981042970,-500.0,0.00039178,4]
[311199960,1704981042979,-500.0,0.00039178,4]
[311199963,1704981042988,-500.0,0.00039178,4]
[311199966,1704981042997,-500.0,0.00039178,4]
[311199969,1704981043006,-500.0,0.00039178,4]
[311199972,1704981043015,-500.0,0.00039178,4]
[311199975,1704981043024,-500.0,0.00039178,4]
[311199977,1704981043033,-500.0,0.00039178,4]
[311199980,1704981043042,-500.0,0.00039178,4]
[311199983,1704981043052,-500.0,0.00039178,4]
[311199984,1704981043060,-500.0,0.00039178,4]
[311199987,1704981043070,-500.0,0.00039178,4]
[311199989,1704981043079,-500.0,0.00039178,4]
[311199991,1704981043088,-500.0,0.00039178,4]
[311199993,1704981043097,-200.0,0.00039178,4]
[311199995,1704981043106,-500.0,0.00039178,4]
[311199996,1704981043116,-605.58709502,0.00039178,4]
[311199998,1704981043126,-500.0,0.00039178,4]
[311200000,1704981043135,-500.0,0.00039178,4]
[311200001,1704981043144,-500.0,0.00039178,4]
[311200002,1704981043155,-592.47503441,0.00039178,4]
[311200003,1704981043164,-500.0,0.00039178,4]
[311200004,1704981043174,-500.0,0.00039178,4]
[311200005,1704981043183,-500.0,0.00039178,4]
[311200006,1704981043192,-500.0,0.00039178,4]
[311200007,1704981043201,-500.0,0.00039178,4]
[311200008,1704981043210,-500.0,0.00039178,4]
[311200009,1704981043219,-500.0,0.00039178,4]
[311200010,1704981043229,-500.0,0.00039178,4]
[311200011,1704981043238,-500.0,0.00039178,4]
[311200012,1704981043247,-500.0,0.00039178,4]
[311200013,1704981043257,-500.0,0.00039178,4]
[311200014,1704981043266,-500.0,0.00039178,4]
[311200015,1704981043276,-500.0,0.00039178,4]
[311200016,1704981043287,-500.0,0.00039178,4]
[311200017,1704981043297,-500.0,0.00039178,4]
[311200019,1704981043306,-500.0,0.00039178,4]
[311200021,1704981043315,-500.0,0.00039178,2]
[311200023,1704981043324,-500.0,0.00039178,4]
[311200024,1704981043333,-500.0,0.00039178,4]
[311200025,1704981043342,-500.0,0.00039178,4]
[311200026,1704981043351,-1000.0,0.00039178,2]
[311200027,1704981043362,-500.0,0.00039178,4]
[311200028,1704981043371,-500.0,0.00039178,4]
[311200029,1704981043381,-500.0,0.00039178,4]
[311200030,1704981043390,-500.0,0.00039178,4]
[311200031,1704981043399,-500.0,0.00039178,4]
[311200032,1704981043410,-500.0,0.00039178,4]
[311200033,1704981043419,-500.0,0.00039178,4]
[311200034,1704981043428,-500.0,0.00039178,4]
[311200035,1704981043437,-500.0,0.00039178,4]
[311200036,1704981043447,-500.0,0.00039178,4]
[311200037,1704981043456,-500.0,0.00039178,4]
[311200038,1704981043466,-500.0,0.00039178,4]
[311200039,1704981043475,-500.0,0.00039178,4]
[311200040,1704981043484,-500.0,0.00039178,7]
[311200041,1704981043493,-500.0,0.00039178,4]
[311200042,1704981043502,-500.0,0.00039178,4]
[311200043,1704981043512,-500.0,0.00039178,4]